[Event "*** Titled Tuesday 3|2 Blitz"]
[Site "Chess.com"]
[Date "2016.05.03"]
[Round "8"]
[White "asms9699"]
[Black "Penguininja"]
[Result "1/2-1/2"]
[WhiteElo "2354"]
[BlackElo "2246"]
[TimeControl "180+2"]
[EndTime "18:47:27 PDT"]
[Termination "Game drawn by agreement"]

1. c4 {[%clk 0:03:01.9]} 1... c6 {[%clk 0:03:00.4]} 2. g3 {[%clk 0:03:03.2]}
2... d5 {[%clk 0:03:02]} 3. Bg2 {[%clk 0:03:05.1]} 3... Nf6 {[%clk 0:03:03.4]}
4. Nf3 {[%clk 0:03:06.2]} 4... Bf5 {[%clk 0:03:04.7]} 5. cxd5 {[%clk 0:03:06.2]}
5... cxd5 {[%clk 0:03:05.2]} 6. Qb3 {[%clk 0:03:07.2]} 6... Nc6 {[%clk
0:03:06.5]} 7. Qxb7 {[%clk 0:03:04.3]} 7... Bd7 {[%clk 0:03:07.5]} 8. Qb3 {[%clk
0:03:01.4]} 8... e5 {[%clk 0:03:06.8]} 9. O-O {[%clk 0:03:01.2]} 9... Rb8 {[%clk
0:02:58.9]} 10. Qd1 {[%clk 0:02:59.8]} 10... e4 {[%clk 0:02:35.1]} 11. Ne1
{[%clk 0:02:59.7]} 11... Be7 {[%clk 0:02:27]} 12. d3 {[%clk 0:02:53.9]} 12...
O-O {[%clk 0:02:17]} 13. dxe4 {[%clk 0:02:52]} 13... dxe4 {[%clk 0:02:15.3]} 14.
Nc3 {[%clk 0:02:51.7]} 14... Bb4 {[%clk 0:01:54.4]} 15. Nxe4 {[%clk 0:02:46.7]}
15... Nxe4 {[%clk 0:01:56.3]} 16. Bxe4 {[%clk 0:02:47.6]} 16... Qe7 {[%clk
0:01:57.2]} 17. Bf3 {[%clk 0:02:42.2]} 17... Ne5 {[%clk 0:01:43.2]} 18. Bg2
{[%clk 0:02:38.5]} 18... Bb5 {[%clk 0:01:38.9]} 19. Nd3 {[%clk 0:02:33.3]} 19...
Rfd8 {[%clk 0:01:32.4]} 20. Bf4 {[%clk 0:02:30.5]} 20... Nxd3 {[%clk 0:01:25.6]}
21. exd3 {[%clk 0:02:29.2]} 21... Rxd3 {[%clk 0:01:22.8]} 22. Bxb8 {[%clk
0:01:42.4]} 22... Rxd1 {[%clk 0:01:15.9]} 23. Rfxd1 {[%clk 0:01:44.3]} 23... h6
{[%clk 0:01:12.6]} 24. a3 {[%clk 0:01:43.7]} 24... Bc5 {[%clk 0:01:13.8]} 25. b4
{[%clk 0:01:41.7]} 25... Bb6 {[%clk 0:01:09.2]} 26. Bf4 {[%clk 0:01:34.3]} 26...
g5 {[%clk 0:01:01.8]} 27. Bd6 {[%clk 0:01:22.5]} 27... Qf6 {[%clk 0:00:48.5]}
28. Bc5 {[%clk 0:01:23.1]} 28... Bc7 {[%clk 0:00:50]} 29. Rac1 {[%clk
0:01:18.2]} 29... a6 {[%clk 0:00:47]} 30. Bd4 {[%clk 0:01:10.9]} 30... Qe7
{[%clk 0:00:46.8]} 31. Re1 {[%clk 0:01:10.2]} 31... Qd8 {[%clk 0:00:44.1]} 32.
Bc5 {[%clk 0:01:06.2]} 32... Bd7 {[%clk 0:00:41.8]} 33. Rcd1 {[%clk 0:01:05.6]}
33... Qc8 {[%clk 0:00:41.6]} 34. Bd5 {[%clk 0:01:02.5]} 34... Bd8 {[%clk
0:00:40.2]} 35. Rd2 {[%clk 0:00:54.1]} 35... Bf6 {[%clk 0:00:39.6]} 36. Bb3
{[%clk 0:00:49.2]} 36... Bh3 {[%clk 0:00:27.3]} 37. Rd6 {[%clk 0:00:42.9]} 37...
Bg7 {[%clk 0:00:21.4]} 38. Bd5 {[%clk 0:00:37.2]} 38... Bf8 {[%clk 0:00:15.5]}
39. Rc6 {[%clk 0:00:34.3]} 39... Qf5 {[%clk 0:00:14.9]} 40. Be4 {[%clk
0:00:32.7]} 40... Qd7 {[%clk 0:00:11.2]} 41. Bxf8 {[%clk 0:00:21.1]} 41... Kxf8
{[%clk 0:00:13.1]} 42. Rxh6 {[%clk 0:00:20.2]} 42... Kg7 {[%clk 0:00:14.3]} 43.
Rxa6 {[%clk 0:00:18.5]} 43... Be6 {[%clk 0:00:14.4]} 44. Bg2 {[%clk 0:00:16.7]}
44... Qd2 {[%clk 0:00:15.4]} 45. Rf1 {[%clk 0:00:11.7]} 45... Qb2 {[%clk
0:00:15.4]} 46. Rxe6 {[%clk 0:00:10.8]} 46... fxe6 {[%clk 0:00:16.1]} 47. a4
{[%clk 0:00:12.2]} 47... Qxb4 {[%clk 0:00:17.3]} 48. Bc6 {[%clk 0:00:13.3]}
48... Qa5 {[%clk 0:00:17.3]} 49. Bb5 {[%clk 0:00:14.3]} 49... Kf6 {[%clk
0:00:18.4]} 50. Rd1 {[%clk 0:00:15.4]} 50... Ke5 {[%clk 0:00:18.6]} 51. Rc1
{[%clk 0:00:15.8]} 51... Qb6 {[%clk 0:00:19.1]} 52. Rc6 {[%clk 0:00:16.3]} 52...
Qa5 {[%clk 0:00:20.3]} 53. Rc5+ {[%clk 0:00:17.3]} 53... Kf6 {[%clk 0:00:20.4]}
54. Rc1 {[%clk 0:00:18]} 54... Qd2 {[%clk 0:00:21.1]} 55. Rf1 {[%clk 0:00:19]}
55... Qa5 {[%clk 0:00:21.9]} 56. Bc6 {[%clk 0:00:20.4]} 56... Qc5 {[%clk
0:00:22.6]} 57. Bf3 {[%clk 0:00:21.9]} 57... Qa5 {[%clk 0:00:23.2]} 58. Kg2
{[%clk 0:00:20.8]} 58... Kf5 {[%clk 0:00:24.2]} 59. Rd1 {[%clk 0:00:21.5]} 59...
Kf6 {[%clk 0:00:25.5]} 60. Rd3 {[%clk 0:00:22]} 60... Qc5 {[%clk 0:00:25.9]} 61.
Re3 {[%clk 0:00:23.3]} 61... Qa5 {[%clk 0:00:24.2]} 62. Bg4 {[%clk 0:00:24]}
62... Qa8+ {[%clk 0:00:24.6]} 63. Bf3 {[%clk 0:00:22.5]} 63... Qxa4 {[%clk
0:00:24.8]} 64. Re4 {[%clk 0:00:23.8]} 64... Qa5 {[%clk 0:00:25.4]} 65. h4
{[%clk 0:00:24.5]} 65... gxh4 {[%clk 0:00:24.9]} 66. Rxh4 {[%clk 0:00:26.4]}
66... Qg5 {[%clk 0:00:24.1]} 67. Rg4 {[%clk 0:00:26.2]} 67... Qh6 {[%clk
0:00:24.6]} 68. Be4 {[%clk 0:00:26.3]} 68... Ke5 {[%clk 0:00:24.3]} 69. Bf3
{[%clk 0:00:26.4]} 69... Kd6 {[%clk 0:00:24.9]} 70. Rd4+ {[%clk 0:00:27.4]}
70... Ke5 {[%clk 0:00:26]} 71. Re4+ {[%clk 0:00:28.8]} 71... Kf6 {[%clk
0:00:26.4]} 72. Bg4 {[%clk 0:00:29.7]} 72... e5 {[%clk 0:00:26]} 73. Bf3 {[%clk
0:00:30.6]} 73... Qg5 {[%clk 0:00:26.8]} 74. Ra4 {[%clk 0:00:31.5]} 74... Qd2
{[%clk 0:00:23.2]} 75. Ra6+ {[%clk 0:00:32.2]} 75... Kf7 {[%clk 0:00:23]} 76.
Rb6 {[%clk 0:00:32.3]} 76... Qd4 {[%clk 0:00:23.7]} 77. Rb7+ {[%clk 0:00:33.3]}
77... Kf6 {[%clk 0:00:25.2]} 78. Rb3 {[%clk 0:00:29.4]} 78... Qd6 {[%clk
0:00:19.6]} 79. Rc3 {[%clk 0:00:29.6]} 79... Qd4 {[%clk 0:00:20.7]} 80. Re3
{[%clk 0:00:30.6]} 80... Qc5 {[%clk 0:00:20.1]} 81. Be4 {[%clk 0:00:31.3]} 81...
Qd4 {[%clk 0:00:20.6]} 82. Kg1 {[%clk 0:00:30.1]} 82... Qd1+ {[%clk 0:00:20.8]}
83. Kh2 {[%clk 0:00:31.7]} 83... Qh5+ {[%clk 0:00:21.3]} 84. Kg2 {[%clk
0:00:32.7]} 84... Qd1 {[%clk 0:00:22.7]} 85. Bf3 {[%clk 0:00:33.9]} 85... Qd4
{[%clk 0:00:23.7]} 86. Re4 {[%clk 0:00:35.1]} 86... Qd2 {[%clk 0:00:24.7]} 87.
Rh4 {[%clk 0:00:36.3]} 87... Qg5 {[%clk 0:00:24.5]} 88. Be4 {[%clk 0:00:37.1]}
88... Qg7 {[%clk 0:00:23.7]} 89. Kf3 {[%clk 0:00:37.2]} 89... Qf8 {[%clk
0:00:20.2]} 90. Rh5 {[%clk 0:00:34.7]} 90... Qa3+ {[%clk 0:00:20.4]} 91. Kg2
{[%clk 0:00:35.8]} 91... Qb4 {[%clk 0:00:19.9]} 92. Rh6+ {[%clk 0:00:35.3]}
92... Ke7 {[%clk 0:00:18.3]} 93. Bf3 {[%clk 0:00:34.5]} 93... Qd4 {[%clk
0:00:17]} 94. Rh4 {[%clk 0:00:34.1]} 94... Qb2 {[%clk 0:00:17.7]} 95. Bg4 {[%clk
0:00:30.8]} 95... Qb7+ {[%clk 0:00:16.6]} 96. Kh2 {[%clk 0:00:31]} 96... Qb2
{[%clk 0:00:15.1]} 97. Kg2 {[%clk 0:00:32.3]} 97... Qb7+ {[%clk 0:00:16.1]} 98.
Bf3 {[%clk 0:00:33.8]} 98... Qb2 {[%clk 0:00:17.7]} 99. g4 {[%clk 0:00:35.3]}
99... Kf6 {[%clk 0:00:18]} 100. Rh6+ {[%clk 0:00:36.2]} 100... Kg7 {[%clk
0:00:19.4]} 101. Re6 {[%clk 0:00:36.7]} 101... Qd4 {[%clk 0:00:19.3]} 102. Rc6
{[%clk 0:00:34.1]} 102... Qf4 {[%clk 0:00:18.1]} 103. Re6 {[%clk 0:00:32.5]}
103... Qd4 {[%clk 0:00:18.3]} 104. Ra6 {[%clk 0:00:28.8]} 104... Qb4 {[%clk
0:00:14.4]} 105. Ra2 {[%clk 0:00:27.1]} 105... Qf4 {[%clk 0:00:14.9]} 106. Re2
{[%clk 0:00:28]} 106... Qd4 {[%clk 0:00:15.6]} 107. Re4 {[%clk 0:00:29.1]}
107... Qd6 {[%clk 0:00:15.5]} 108. Kg3 {[%clk 0:00:30]} 108... Qf6 {[%clk
0:00:14.8]} 109. Bg2 {[%clk 0:00:30.4]} 109... Qg5 {[%clk 0:00:14.3]} 110. f3
{[%clk 0:00:28.6]} 110... Qe7 {[%clk 0:00:11.2]} 111. Bf1 {[%clk 0:00:29.2]}
111... Qc5 {[%clk 0:00:12.3]} 112. Bg2 {[%clk 0:00:27]} 112... Qa5 {[%clk
0:00:12.1]} 113. f4 {[%clk 0:00:27]} 113... Qc3+ {[%clk 0:00:09.6]} 114. Bf3
{[%clk 0:00:27.2]} 114... exf4+ {[%clk 0:00:10.1]} 115. Kxf4 {[%clk 0:00:28.4]}
115... Qc1+ {[%clk 0:00:10.9]} 116. Kf5 {[%clk 0:00:29.4]} 116... Qc8+ {[%clk
0:00:11.1]} 117. Kg5 {[%clk 0:00:28.4]} 117... Qd8+ {[%clk 0:00:08.5]} 118. Kf4
{[%clk 0:00:28.7]} 118... Qf6+ {[%clk 0:00:09]} 119. Kg3 {[%clk 0:00:29.7]}
119... Qd6+ {[%clk 0:00:10.3]} 120. Kg2 {[%clk 0:00:30.4]} 120... Qd2+ {[%clk
0:00:11.3]} 121. Be2 {[%clk 0:00:31.6]} 121... Qd5 {[%clk 0:00:11.4]} 122. Kf3
{[%clk 0:00:31.9]} 122... Qb3+ {[%clk 0:00:12.1]} 123. Re3 {[%clk 0:00:32.5]}
123... Qf7+ {[%clk 0:00:13.3]} 124. Kg3 {[%clk 0:00:33.2]} 124... Qc7+ {[%clk
0:00:14.5]} 125. Kf2 {[%clk 0:00:34.6]} 125... Qc5 {[%clk 0:00:15.4]} 126. Bf3
{[%clk 0:00:35.7]} 126... Qc2+ {[%clk 0:00:16]} 127. Re2 {[%clk 0:00:36.6]}
127... Qc5+ {[%clk 0:00:17.5]} 128. Kg2 {[%clk 0:00:38.1]} 128... Qb6 {[%clk
0:00:17.7]} 129. Rc2 {[%clk 0:00:38.9]} 129... Qe3 {[%clk 0:00:17.2]} 130. Rc7+
{[%clk 0:00:39.2]} 130... Kf8 {[%clk 0:00:18.6]} 131. Rb7 {[%clk 0:00:39.3]}
131... Qd2+ {[%clk 0:00:19.2]} 132. Kg3 {[%clk 0:00:40.6]} 132... Qd6+ {[%clk
0:00:20.3]} 133. Kf2 {[%clk 0:00:42.1]} 133... Qd4+ {[%clk 0:00:21.5]} 134. Ke2
{[%clk 0:00:43.1]} 134... Qe5+ {[%clk 0:00:22.3]} 135. Kd3 {[%clk 0:00:44.1]}
135... Qf4 {[%clk 0:00:22]} 136. Ke2 {[%clk 0:00:39.1]} 136... Qe5+ {[%clk
0:00:23]} 137. Kf2 {[%clk 0:00:40.3]} 137... Qd4+ {[%clk 0:00:23.5]} 138. Kg3
{[%clk 0:00:41.2]} 138... Qe5+ {[%clk 0:00:24.8]} 139. Kg2 {[%clk 0:00:42.7]}
139... Qd4 {[%clk 0:00:24.5]} 140. Rb5 {[%clk 0:00:43.3]} 140... Qd2+ {[%clk
0:00:24.9]} 141. Kg3 {[%clk 0:00:44.4]} 141... Qe1+ {[%clk 0:00:25.5]} 142. Kf4
{[%clk 0:00:44.7]} 142... Qd2+ {[%clk 0:00:26.8]} 1/2-1/2

[Event "*** Titled Tuesday 3|2 Blitz"]
[Site "Chess.com"]
[Date "2016.05.03"]
[Round "9"]
[White "Penguininja"]
[Black "chito89"]
[Result "1/2-1/2"]
[WhiteElo "2252"]
[BlackElo "2547"]
[TimeControl "180+2"]
[EndTime "18:50:13 PDT"]
[Termination "Game drawn by agreement"]

1. d4 {[%clk 0:02:58.6]} 1... d5 {[%clk 0:02:55.2]} 2. Nf3 {[%clk 0:02:56.5]}
2... e6 {[%clk 0:02:54.4]} 3. c4 {[%clk 0:02:57.6]} 3... dxc4 {[%clk 0:02:55.6]}
4. g3 {[%clk 0:02:58.2]} 4... Nf6 {[%clk 0:02:56.9]} 5. Bg2 {[%clk 0:02:59.7]}
5... c5 {[%clk 0:02:57.2]} 6. O-O {[%clk 0:02:59]} 6... Nc6 {[%clk 0:02:58.3]}
7. Na3 {[%clk 0:02:56.5]} 7... cxd4 {[%clk 0:02:57.5]} 8. Nxc4 {[%clk
0:02:57.7]} 8... Be7 {[%clk 0:02:58.9]} 9. Nce5 {[%clk 0:02:55.4]} 9... Bd7
{[%clk 0:02:58.7]} 10. b3 {[%clk 0:02:40.4]} 10... Nd5 {[%clk 0:02:48.1]} 11.
Nxd7 {[%clk 0:02:34.8]} 11... Qxd7 {[%clk 0:02:47.7]} 12. Bb2 {[%clk 0:02:09.8]}
12... e5 {[%clk 0:02:44.3]} 13. e3 {[%clk 0:02:04.8]} 13... O-O {[%clk
0:02:33.8]} 14. exd4 {[%clk 0:02:02.4]} 1/2-1/2

[Event "*** Titled Tuesday 3|2 Blitz"]
[Site "Chess.com"]
[Date "2016.05.03"]
[Round "9"]
[White "SidArun"]
[Black "jk13"]
[Result "0-1"]
[WhiteElo "2013"]
[BlackElo "2438"]
[TimeControl "180+2"]
[EndTime "18:51:35 PDT"]
[Termination "jk13 won by resignation"]

1. d4 {[%clk 0:03:01.9]} 1... e6 {[%clk 0:02:59.3]} 2. e4 {[%clk 0:03:02.2]}
2... Nf6 {[%clk 0:03:00.4]} 3. Nc3 {[%clk 0:03:02.7]} 3... Bb4 {[%clk
0:02:57.2]} 4. Bd3 {[%clk 0:03:03.2]} 4... d5 {[%clk 0:02:57.4]} 5. e5 {[%clk
0:03:04.4]} 5... Nfd7 {[%clk 0:02:56.5]} 6. Qg4 {[%clk 0:03:05.1]} 6... Bf8
{[%clk 0:02:54.6]} 7. Nf3 {[%clk 0:03:00.3]} 7... c5 {[%clk 0:02:53.9]} 8. Bg5
{[%clk 0:02:43.5]} 8... Qa5 {[%clk 0:02:53.7]} 9. O-O {[%clk 0:02:42.1]} 9...
cxd4 {[%clk 0:02:52.6]} 10. Qxd4 {[%clk 0:02:33.1]} 10... Nc6 {[%clk 0:02:52.9]}
11. Qe3 {[%clk 0:02:23]} 11... Bc5 {[%clk 0:02:42.5]} 12. Qe2 {[%clk 0:02:18.2]}
12... Nd4 {[%clk 0:02:41.8]} 13. Nxd4 {[%clk 0:02:18.4]} 13... Bxd4 {[%clk
0:02:43.7]} 14. Nb5 {[%clk 0:02:17.7]} 14... Bxe5 {[%clk 0:02:42.7]} 15. f4
{[%clk 0:02:16.4]} 15... Qb6+ {[%clk 0:02:35.1]} 16. Kh1 {[%clk 0:02:16.8]}
16... Bf6 {[%clk 0:02:36.3]} 17. Bxf6 {[%clk 0:01:48.7]} 17... Nxf6 {[%clk
0:02:38.2]} 18. f5 {[%clk 0:01:49.7]} 18... O-O {[%clk 0:02:32.7]} 19. g4 {[%clk
0:01:50.4]} 19... exf5 {[%clk 0:02:27]} 20. gxf5 {[%clk 0:01:51.3]} 20... Re8
{[%clk 0:02:24.6]} 21. Qf3 {[%clk 0:01:47.5]} 21... Bd7 {[%clk 0:02:23.9]} 22.
Nc3 {[%clk 0:01:44.2]} 22... d4 {[%clk 0:02:25.1]} 23. Ne4 {[%clk 0:01:36.9]}
23... Nxe4 {[%clk 0:02:24.8]} 0-1

[Event "*** Titled Tuesday 3|2 Blitz"]
[Site "Chess.com"]
[Date "2016.05.03"]
[Round "9"]
[White "Kacparov"]
[Black "GeorgMeier"]
[Result "1/2-1/2"]
[WhiteElo "2587"]
[BlackElo "2727"]
[TimeControl "180+2"]
[EndTime "18:54:20 PDT"]
[Termination "Game drawn - insufficient material"]

1. e4 {[%clk 0:03:01.9]} 1... e6 {[%clk 0:03:00.3]} 2. d4 {[%clk 0:03:02.2]}
2... d5 {[%clk 0:03:00.4]} 3. Nd2 {[%clk 0:03:03.4]} 3... dxe4 {[%clk
0:03:01.6]} 4. Nxe4 {[%clk 0:03:03.6]} 4... Nd7 {[%clk 0:03:03.5]} 5. Nf3 {[%clk
0:03:04.4]} 5... Ngf6 {[%clk 0:03:05.4]} 6. Bd3 {[%clk 0:03:05.9]} 6... c5
{[%clk 0:03:05.9]} 7. Nxf6+ {[%clk 0:03:05]} 7... Nxf6 {[%clk 0:03:07.8]} 8. O-O
{[%clk 0:03:05.5]} 8... cxd4 {[%clk 0:03:08.8]} 9. Nxd4 {[%clk 0:03:06.2]} 9...
Bc5 {[%clk 0:03:10.2]} 10. Nb3 {[%clk 0:03:07.2]} 10... Bd6 {[%clk 0:03:10.7]}
11. Qf3 {[%clk 0:03:07.8]} 11... Qc7 {[%clk 0:03:11.1]} 12. h3 {[%clk
0:03:07.9]} 12... Bd7 {[%clk 0:03:13]} 13. c4 {[%clk 0:02:48]} 13... Bc6 {[%clk
0:03:13.1]} 14. Qe2 {[%clk 0:02:49.2]} 14... O-O-O {[%clk 0:03:14]} 15. Be3
{[%clk 0:02:45]} 15... Kb8 {[%clk 0:03:14.4]} 16. Rfd1 {[%clk 0:02:43.6]} 16...
Bh2+ {[%clk 0:03:13.9]} 17. Kf1 {[%clk 0:02:41.5]} 17... Bf4 {[%clk 0:03:15.4]}
18. Nd4 {[%clk 0:02:30.8]} 18... e5 {[%clk 0:02:44]} 19. Nxc6+ {[%clk
0:02:30.8]} 19... Qxc6 {[%clk 0:02:44.7]} 20. Bxf4 {[%clk 0:02:28.2]} 20... exf4
{[%clk 0:02:45.9]} 21. Qf3 {[%clk 0:02:28.1]} 21... Qxf3 {[%clk 0:02:45.8]} 22.
gxf3 {[%clk 0:02:29.3]} 22... Kc7 {[%clk 0:02:47.1]} 23. Be4 {[%clk 0:02:26]}
23... g5 {[%clk 0:02:42.7]} 24. b4 {[%clk 0:02:11.3]} 24... b6 {[%clk
0:02:42.5]} 25. a4 {[%clk 0:02:12]} 25... h5 {[%clk 0:02:28.9]} 26. Bf5 {[%clk
0:01:54.8]} 26... Rhe8 {[%clk 0:02:26.1]} 27. Rxd8 {[%clk 0:01:51.4]} 27... Rxd8
{[%clk 0:02:26.5]} 28. a5 {[%clk 0:01:52.8]} 28... Kd6 {[%clk 0:02:11.6]} 29.
axb6 {[%clk 0:01:53.5]} 29... axb6 {[%clk 0:02:13.5]} 30. Rd1+ {[%clk
0:01:44.4]} 30... Ke7 {[%clk 0:02:14.6]} 31. Rxd8 {[%clk 0:01:44.8]} 31... Kxd8
{[%clk 0:02:15.8]} 32. Ke2 {[%clk 0:01:46.5]} 32... Ne8 {[%clk 0:01:59.1]} 33.
Kd3 {[%clk 0:01:36.2]} 33... Ng7 {[%clk 0:01:54.6]} 34. Ke4 {[%clk 0:01:26.5]}
34... Ke7 {[%clk 0:01:49.1]} 35. Ke5 {[%clk 0:01:22.4]} 35... f6+ {[%clk
0:01:48.3]} 36. Ke4 {[%clk 0:01:23.6]} 36... Kd6 {[%clk 0:01:49.5]} 37. Bg6
{[%clk 0:01:20.5]} 37... Ke6 {[%clk 0:01:49.3]} 38. c5 {[%clk 0:01:08.9]} 38...
bxc5 {[%clk 0:01:49.7]} 39. bxc5 {[%clk 0:01:09.8]} 39... f5+ {[%clk 0:01:50.8]}
40. Kd4 {[%clk 0:01:10.9]} 40... g4 {[%clk 0:01:51.4]} 41. fxg4 {[%clk 0:01:09]}
41... fxg4 {[%clk 0:01:52.1]} 42. hxg4 {[%clk 0:01:09.8]} 42... hxg4 {[%clk
0:01:53]} 43. Be4 {[%clk 0:01:08.9]} 43... g3 {[%clk 0:01:47.3]} 44. fxg3 {[%clk
0:01:09.8]} 44... fxg3 {[%clk 0:01:49.2]} 45. Ke3 {[%clk 0:01:10.9]} 45... Ke5
{[%clk 0:01:50.5]} 46. Kf3 {[%clk 0:01:11.4]} 46... Ne6 {[%clk 0:01:50.7]} 47.
Kxg3 {[%clk 0:01:12]} 47... Kxe4 {[%clk 0:01:50.5]} 48. Kh2 {[%clk 0:01:12.7]}
48... Kd5 {[%clk 0:01:52.4]} 49. Kh1 {[%clk 0:01:13.8]} 49... Kxc5 {[%clk
0:01:54]} 1/2-1/2

[Event "*** Titled Tuesday 3|2 Blitz"]
[Site "Chess.com"]
[Date "2016.05.03"]
[Round "9"]
[White "jcibarra"]
[Black "NaziPaiki"]
[Result "1-0"]
[WhiteElo "2617"]
[BlackElo "2671"]
[TimeControl "180+2"]
[EndTime "18:54:21 PDT"]
[Termination "jcibarra won by resignation"]

1. e4 {[%clk 0:03:01.9]} 1... c6 {[%clk 0:03:00.6]} 2. Nc3 {[%clk 0:03:00.5]}
2... d5 {[%clk 0:03:02.1]} 3. Nf3 {[%clk 0:03:02.1]} 3... Bg4 {[%clk 0:03:01.9]}
4. h3 {[%clk 0:03:03.5]} 4... Bxf3 {[%clk 0:03:02.1]} 5. Qxf3 {[%clk 0:03:05.4]}
5... e6 {[%clk 0:02:59.3]} 6. d3 {[%clk 0:03:05.8]} 6... Nd7 {[%clk 0:02:58.4]}
7. Bd2 {[%clk 0:03:06.1]} 7... Ngf6 {[%clk 0:02:56.4]} 8. g4 {[%clk 0:03:07.1]}
8... h6 {[%clk 0:02:56.4]} 9. O-O-O {[%clk 0:03:04]} 9... Qb6 {[%clk 0:02:55.2]}
10. Qg3 {[%clk 0:02:58.8]} 10... Bb4 {[%clk 0:02:53.1]} 11. a3 {[%clk
0:02:55.4]} 11... Be7 {[%clk 0:02:45.3]} 12. e5 {[%clk 0:02:52.1]} 12... Ng8
{[%clk 0:02:45.4]} 13. f4 {[%clk 0:02:48.1]} 13... O-O-O {[%clk 0:02:46.4]} 14.
Bg2 {[%clk 0:02:45.4]} 14... Kb8 {[%clk 0:02:44.9]} 15. Rhf1 {[%clk 0:02:40.3]}
15... Qc7 {[%clk 0:02:34.7]} 16. Kb1 {[%clk 0:02:35.6]} 16... g6 {[%clk
0:02:33.5]} 17. Qf2 {[%clk 0:02:31]} 17... h5 {[%clk 0:02:33.2]} 18. Ne2 {[%clk
0:02:27.1]} 18... Qb6 {[%clk 0:02:28.7]} 19. Be3 {[%clk 0:02:23.7]} 19... c5
{[%clk 0:02:29.7]} 20. Qg3 {[%clk 0:02:16.3]} 20... hxg4 {[%clk 0:02:23.6]} 21.
hxg4 {[%clk 0:02:17.2]} 21... Bh4 {[%clk 0:02:23.6]} 22. Qf3 {[%clk 0:02:18.5]}
22... Ne7 {[%clk 0:02:23]} 23. d4 {[%clk 0:02:17.1]} 23... c4 {[%clk 0:02:18.8]}
24. Rh1 {[%clk 0:02:17.5]} 24... Nc6 {[%clk 0:02:09.8]} 25. g5 {[%clk
0:02:15.3]} 25... Ne7 {[%clk 0:02:10.6]} 26. Bh3 {[%clk 0:02:09.5]} 26... Rc8
{[%clk 0:01:56.7]} 27. Bg4 {[%clk 0:02:06.1]} 27... c3 {[%clk 0:01:55.4]} 28. b3
{[%clk 0:02:07.1]} 28... Qa5 {[%clk 0:01:49.8]} 29. Bc1 {[%clk 0:02:04.8]} 29...
Rh7 {[%clk 0:01:45.3]} 30. Rh3 {[%clk 0:02:01.1]} 30... Rch8 {[%clk 0:01:46.2]}
31. Rdh1 {[%clk 0:02:00.6]} 31... Nf5 {[%clk 0:01:46.3]} 32. Bxf5 {[%clk
0:01:49.9]} 32... gxf5 {[%clk 0:01:45.6]} 33. R1h2 {[%clk 0:01:48.8]} 33... Nf8
{[%clk 0:01:44]} 34. Qh1 {[%clk 0:01:49.5]} 34... Ng6 {[%clk 0:01:45.2]} 35. Ng1
{[%clk 0:01:44.5]} 35... b5 {[%clk 0:01:42.5]} 36. Nf3 {[%clk 0:01:43.7]} 36...
b4 {[%clk 0:01:39.6]} 37. a4 {[%clk 0:01:41.3]} 37... Rh5 {[%clk 0:01:29.6]} 38.
Nxh4 {[%clk 0:01:40]} 38... Ne7 {[%clk 0:01:28.4]} 39. Nf3 {[%clk 0:01:37.2]}
39... Rxh3 {[%clk 0:01:25.2]} 40. Rxh3 {[%clk 0:01:39.1]} 40... Rxh3 {[%clk
0:01:26.5]} 41. Qxh3 {[%clk 0:01:40.9]} 41... Nc8 {[%clk 0:01:27.7]} 42. Qh7
{[%clk 0:01:39.8]} 42... Qc7 {[%clk 0:01:28]} 43. g6 {[%clk 0:01:41]} 43... fxg6
{[%clk 0:01:29.3]} 44. Qxg6 {[%clk 0:01:42.2]} 44... Qc6 {[%clk 0:01:28.6]} 45.
Ng5 {[%clk 0:01:42.9]} 1-0

[Event "*** Titled Tuesday 3|2 Blitz"]
[Site "Chess.com"]
[Date "2016.05.03"]
[Round "9"]
[White "Tirantes"]
[Black "chesstatour"]
[Result "0-1"]
[WhiteElo "2209"]
[BlackElo "2034"]
[TimeControl "180+2"]
[EndTime "18:54:49 PDT"]
[Termination "chesstatour won by resignation"]

1. c4 {[%clk 0:03:01.9]} 1... e5 {[%clk 0:02:56]} 2. Nc3 {[%clk 0:03:01.8]} 2...
Nc6 {[%clk 0:02:57.6]} 3. g3 {[%clk 0:03:01.1]} 3... Bb4 {[%clk 0:02:58.6]} 4.
Nd5 {[%clk 0:02:57.2]} 4... Bc5 {[%clk 0:02:58.8]} 5. Bg2 {[%clk 0:02:57.7]}
5... Nge7 {[%clk 0:02:58.7]} 6. e3 {[%clk 0:02:52.5]} 6... O-O {[%clk
0:02:57.4]} 7. Ne2 {[%clk 0:02:52.4]} 7... d6 {[%clk 0:02:54.4]} 8. Nec3 {[%clk
0:02:51.5]} 8... Be6 {[%clk 0:02:45.6]} 9. O-O {[%clk 0:02:47.6]} 9... f5 {[%clk
0:02:39.7]} 10. Re1 {[%clk 0:02:37]} 10... e4 {[%clk 0:02:33.1]} 11. d4 {[%clk
0:02:30.1]} 11... exd3 {[%clk 0:02:29.1]} 12. Qxd3 {[%clk 0:02:30.6]} 12... Ne5
{[%clk 0:02:16.3]} 13. Qc2 {[%clk 0:02:26.3]} 13... Nxc4 {[%clk 0:01:43.3]} 14.
Nxe7+ {[%clk 0:02:26.7]} 14... Qxe7 {[%clk 0:01:44.1]} 15. Nd5 {[%clk
0:02:27.6]} 15... Qf7 {[%clk 0:01:38.1]} 16. Nf4 {[%clk 0:02:27.8]} 16... c6
{[%clk 0:01:16.9]} 17. b3 {[%clk 0:02:20]} 17... Ne5 {[%clk 0:01:05]} 18. Bb2
{[%clk 0:02:20.3]} 18... Ng6 {[%clk 0:01:02]} 19. Nh5 {[%clk 0:02:11.9]} 19...
Ne5 {[%clk 0:00:57.9]} 20. Nxg7 {[%clk 0:01:48.6]} 20... Qxg7 {[%clk 0:00:56.8]}
21. f4 {[%clk 0:01:48.8]} 21... Bb6 {[%clk 0:00:56.7]} 22. fxe5 {[%clk
0:01:48.4]} 22... dxe5 {[%clk 0:00:57.2]} 23. Kh1 {[%clk 0:01:49.1]} 23... Rad8
{[%clk 0:00:37.5]} 24. Qc3 {[%clk 0:01:45.8]} 24... Bc7 {[%clk 0:00:37.6]} 25.
Rf1 {[%clk 0:01:41.1]} 25... Bd5 {[%clk 0:00:34]} 26. e4 {[%clk 0:01:37]} 26...
fxe4 {[%clk 0:00:28.7]} 27. Qe3 {[%clk 0:01:31.7]} 27... Bb6 {[%clk 0:00:26.6]}
28. Qe2 {[%clk 0:01:24.9]} 28... e3 {[%clk 0:00:23.8]} 29. Bxd5+ {[%clk
0:01:02.4]} 29... Rxd5 {[%clk 0:00:25.7]} 30. Rf7 {[%clk 0:01:00.2]} 30... Qxf7
{[%clk 0:00:23.6]} 0-1